fUSD/lending_fUSD_20260614
["ID","MTS","AMOUNT","RATE_DAILY","PERIOD"]
[424979492,1781367072000,-567.721526,0.000289,7]
[424979490,1781367072000,-3793.229882,0.000289,7]
[424979495,1781367072000,-2361.624063,0.000289,7]
[424979497,1781367072000,-2361.624063,0.000289,7]
[424979493,1781367072000,-567.721526,0.000289,7]
[424979494,1781367072000,-567.72153,0.000289,7]
[424979549,1781367073000,-200.0,0.00028923,2]
[424979551,1781367073000,-200.0,0.00028923,2]
[424979545,1781367073000,-200.0,0.00028922,2]
[424979547,1781367073000,-200.0,0.00028922,2]
[424979542,1781367073000,-707.197245,0.000289,7]
[424979544,1781367073000,-1151.99,0.00028919,2]
[424979543,1781367073000,-20878.07718858,0.00028913,2]
[424979554,1781367073000,-303.85973574,0.00028973,2]
[424979540,1781367073000,-707.197237,0.000289,7]
[424979546,1781367073000,-200.0,0.00028922,2]
[424979550,1781367073000,-200.0,0.00028923,2]
[424979561,1781367073000,-500.0,0.00029,2]
[424979555,1781367073000,-7486.36051969,0.00028973,2]
[424979552,1781367073000,-1197.66,0.00028967,30]
[424979557,1781367073000,-289.46386455,0.00028973,2]
[424979556,1781367073000,-1021.52265083,0.00028973,2]
[424979559,1781367073000,-193.53552469,0.00028973,2]
[424979566,1781367073000,-500.0,0.00029,2]
[424979564,1781367073000,-500.0,0.00029,2]
[424979562,1781367073000,-500.0,0.00029,2]
[424979568,1781367073000,-500.0,0.00029,2]
[424979541,1781367073000,-707.197237,0.000289,7]
[424979553,1781367073000,-32327.68271961,0.0002897,6]
[424979539,1781367073000,-707.197237,0.000289,7]
[424979520,1781367073000,-693.500694,0.000289,7]
[424979537,1781367073000,-151.0,0.000289,7]
[424979523,1781367073000,-151.0,0.000289,7]
[424979515,1781367073000,-309.508813,0.000289,7]
[424979524,1781367073000,-151.0,0.000289,7]
[424979516,1781367073000,-960.84198,0.000289,7]
[424979517,1781367073000,-960.84198,0.000289,7]
[424979522,1781367073000,-693.5007,0.000289,7]
[424979519,1781367073000,-693.500694,0.000289,7]
[424979518,1781367073000,-960.841984,0.000289,7]
[424979521,1781367073000,-693.500694,0.000289,7]
[424979567,1781367073000,-500.0,0.00029,2]
[424979525,1781367073000,-2078.793022,0.000289,7]
[424979526,1781367073000,-2078.793022,0.000289,7]
[424979527,1781367073000,-2078.793022,0.000289,7]
[424979536,1781367073000,-595.046452,0.000289,7]
[424979529,1781367073000,-1720.497988,0.000289,7]
[424979528,1781367073000,-2078.793014,0.000289,7]
[424979531,1781367073000,-1720.497988,0.000289,7]
[424979530,1781367073000,-1720.497988,0.000289,7]
[424979532,1781367073000,-1720.497979,0.000289,7]
[424979533,1781367073000,-200.0,0.000289,2]
[424979534,1781367073000,-595.046452,0.000289,7]
[424979535,1781367073000,-595.046452,0.000289,7]
[424979538,1781367073000,-595.046458,0.000289,7]
[424979548,1781367073000,-200.0,0.00028922,2]
[424979563,1781367073000,-500.0,0.00029,2]
[424979558,1781367073000,-375.16764885,0.00028973,2]
[424979565,1781367073000,-500.0,0.00029,2]
[424979594,1781367073000,-200.0,0.00029,2]
[424979596,1781367073000,-200.0,0.00029,2]
[424979592,1781367073000,-200.0,0.00029,2]
[424979595,1781367073000,-200.0,0.00029,2]
[424979602,1781367073000,-200.0,0.00029,2]
[424979607,1781367073000,-200.0,0.00029,2]
[424979606,1781367073000,-200.0,0.00029,2]
[424979601,1781367073000,-200.0,0.00029,2]
[424979600,1781367073000,-200.0,0.00029,2]
[424979608,1781367073000,-200.0,0.00029,2]
[424979604,1781367073000,-200.0,0.00029,2]
[424979603,1781367073000,-200.0,0.00029,2]
[424979605,1781367073000,-200.0,0.00029,2]
[424979610,1781367073000,-200.0,0.00029,2]
[424979609,1781367073000,-200.0,0.00029,2]
[424979611,1781367073000,-200.0,0.00029,2]
[424979612,1781367073000,-200.0,0.00029,2]
[424979613,1781367073000,-200.0,0.00029,2]
[424979615,1781367073000,-200.0,0.00029,2]
[424979617,1781367073000,-110377.64436986,0.00029,2]
[424979614,1781367073000,-219.18,0.00029,2]
[424979560,1781367073000,-763.53484501,0.00028973,2]
[424979616,1781367073000,-508.0,0.00029,2]
[424979593,1781367073000,-200.0,0.00029,2]
[424979599,1781367073000,-200.0,0.00029,2]
[424979618,1781367073000,-1805.43528358,0.00029,2]
[424979597,1781367073000,-200.0,0.00029,2]
[424979591,1781367073000,-200.0,0.00029,2]
[424979572,1781367073000,-500.0,0.00029,2]
[424979573,1781367073000,-500.0,0.00029,2]
[424979571,1781367073000,-500.0,0.00029,2]
[424979575,1781367073000,-500.0,0.00029,2]
[424979574,1781367073000,-500.0,0.00029,2]
[424979578,1781367073000,-500.0,0.00029,2]
[424979577,1781367073000,-500.0,0.00029,2]
[424979576,1781367073000,-500.0,0.00029,2]
[424979570,1781367073000,-500.0,0.00029,2]
[424979580,1781367073000,-500.0,0.00029,2]
[424979569,1781367073000,-500.0,0.00029,2]
[424979585,1781367073000,-500.0,0.00029,2]
[424979579,1781367073000,-500.0,0.00029,2]
[424979590,1781367073000,-200.0,0.00029,2]
[424979582,1781367073000,-500.0,0.00029,2]
[424979587,1781367073000,-500.0,0.00029,2]
[424979589,1781367073000,-241.78,0.00029,2]
[424979598,1781367073000,-200.0,0.00029,2]
[424979588,1781367073000,-500.0,0.00029,2]
[424979583,1781367073000,-500.0,0.00029,2]
[424979581,1781367073000,-500.0,0.00029,2]
[424979584,1781367073000,-500.0,0.00029,2]
[424979586,1781367073000,-500.0,0.00029,2]
[424979641,1781367074000,-246.480551,0.00029,7]
[424979644,1781367074000,-500.0,0.00029,2]
[424979648,1781367074000,-151.0,0.00029,7]
[424979642,1781367074000,-151.0,0.00029,7]
[424979645,1781367074000,-151.0,0.00029,7]
[424979650,1781367074000,-500.0,0.00029,2]
[424979653,1781367074000,-500.0,0.00029,2]
[424979652,1781367074000,-500.0,0.00029,2]
[424979656,1781367074000,-527.67996953,0.00029,2]
[424979655,1781367074000,-500.0,0.00029,2]
[424979660,1781367074000,-1019.6819,0.00029,2]
[424979651,1781367074000,-150.0,0.00029,2]
[424979657,1781367074000,-500.0,0.00029,2]
[424979654,1781367074000,-500.0,0.00029,2]
[424979658,1781367074000,-518.11125959,0.00029,2]
[424979662,1781367074000,-1197.66,0.00029033,30]
[424979661,1781367074000,-1047.16,0.00029009,7]
[424979665,1781367074000,-601.29,0.000291,2]
[424979664,1781367074000,-403.83,0.000291,2]
[424979663,1781367074000,-170.34,0.000291,7]
[424979647,1781367074000,-151.0,0.00029,7]
[424979667,1781367074000,-1197.66,0.000291,30]
[424979659,1781367074000,-1000.0,0.00029,2]
[424979649,1781367074000,-151.0,0.00029,7]
[424979635,1781367074000,-207.81167489,0.00029,2]
[424979643,1781367074000,-151.0,0.00029,7]
[424979666,1781367074000,-601.3,0.000291,2]
[424979620,1781367074000,-41020.59801366,0.00029,2]
[424979628,1781367074000,-788.80349131,0.00029,2]
[424979627,1781367074000,-10290.30071507,0.00029,2]
[424979619,1781367074000,-1948798.16174125,0.00029,2]
[424979629,1781367074000,-2324.07715889,0.00029,2]
[424979625,1781367074000,-219.9686522,0.00029,2]
[424979623,1781367074000,-1001.88759555,0.00029,2]
[424979624,1781367074000,-9630.69243111,0.00029,2]
[424979622,1781367074000,-2572.24816183,0.00029,2]
[424979646,1781367074000,-151.0,0.00029,7]
[424979621,1781367074000,-5506.50943795,0.00029,120]
[424979630,1781367074000,-151.0,0.00029,7]
[424979639,1781367074000,-246.480548,0.00029,7]
[424979638,1781367074000,-246.480548,0.00029,7]
[424979633,1781367074000,-250.0,0.00029,2]
[424979636,1781367074000,-240.16517662,0.00029,2]
[424979634,1781367074000,-167.64625114,0.00029,2]
[424979637,1781367074000,-500.0,0.00029,2]
[424979632,1781367074000,-98869.40513094,0.00029,2]
[424979631,1781367074000,-270.722355,0.00029,7]
[424979640,1781367074000,-246.480548,0.00029,7]
[424979626,1781367074000,-151.0,0.00029,7]
[424979668,1781367074000,-151.12731974,0.00029129,30]
[424979709,1781367074000,-669.86483479,0.00029505,7]
[424979669,1781367074000,-2981.0,0.00029149,30]
[424979692,1781367074000,-5463.44880301,0.00029435,3]
[424979696,1781367074000,-350.0,0.00029442,4]
[424979700,1781367074000,-323.9428217,0.00029505,2]
[424979710,1781367074000,-252.34920919,0.00029505,7]
[424979705,1781367074000,-593.63241342,0.00029505,7]
[424979703,1781367074000,-305.95484038,0.00029505,7]
[424979702,1781367074000,-644.62551992,0.00029505,7]
[424979707,1781367074000,-457.97879489,0.00029505,7]
[424979701,1781367074000,-462.62500725,0.00029505,7]
[424979706,1781367074000,-479.04427018,0.00029505,7]
[424979697,1781367074000,-3717.4705527,0.0002946,2]
[424979708,1781367074000,-564.61817409,0.00029505,7]
[424979713,1781367074000,-446.81349923,0.00029505,7]
[424979711,1781367074000,-474.26780433,0.00029505,7]
[424979714,1781367074000,-227.0197093,0.00029505,7]
[424979715,1781367074000,-500.96340699,0.00029505,7]
[424979718,1781367074000,-334.4757065,0.00029505,7]
[424979717,1781367074000,-749.19032322,0.00029505,7]
[424979716,1781367074000,-508.56824297,0.00029505,7]
[424979720,1781367074000,-483.45159357,0.00029505,7]
[424979670,1781367074000,-523.0,0.0002915,30]
[424979719,1781367074000,-174.92467267,0.00029505,7]
[424979712,1781367074000,-453.04823459,0.00029505,2]
[424979694,1781367074000,-160.78613522,0.00029435,3]
[424979704,1781367074000,-284.75300923,0.00029505,7]
[424979693,1781367074000,-681.01510055,0.00029435,3]
[424979671,1781367074000,-352.0,0.0002915,30]
[424979672,1781367074000,-1161.0,0.0002915,30]
[424979691,1781367074000,-193.40893777,0.00029425,2]
[424979675,1781367074000,-397.0,0.0002915,30]
[424979673,1781367074000,-427.0,0.0002915,30]
[424979677,1781367074000,-1813.0,0.0002915,30]
[424979674,1781367074000,-401.0,0.0002915,30]
[424979676,1781367074000,-471.0,0.0002915,30]
[424979679,1781367074000,-282.0,0.0002915,30]
[424979680,1781367074000,-36636.0,0.0002915,2]
[424979681,1781367074000,-911.0,0.00029155,30]
[424979682,1781367074000,-172.0,0.00029155,30]
[424979678,1781367074000,-348.0,0.0002915,30]
[424979690,1781367074000,-607.67631084,0.00029403,2]
[424979685,1781367074000,-504.0,0.00029273,12]
[424979687,1781367074000,-152.0,0.00029363,7]
[424979686,1781367074000,-388.0,0.00029299,2]
[424979683,1781367074000,-494.0,0.00029222,10]
[424979689,1781367074000,-351.6,0.000294,30]
[424979699,1781367074000,-520.61149893,0.00029505,7]
[424979688,1781367074000,-150.0,0.00029372,2]
[424979684,1781367074000,-1151.99,0.00029224,2]
[424979698,1781367074000,-607.67631084,0.00029465,2]
[424979695,1781367074000,-416.47355182,0.00029435,3]
[424979759,1781367075000,-515.61278529,0.00029506,7]
[424979752,1781367075000,-481.04951305,0.00029506,7]
[424979757,1781367075000,-509.1314633,0.00029506,7]
[424979753,1781367075000,-473.86141853,0.00029506,7]
[424979749,1781367075000,-165.41171442,0.00029505,7]
[424979746,1781367075000,-483.70244421,0.00029505,7]
[424979754,1781367075000,-465.89028998,0.00029506,7]
[424979758,1781367075000,-560.91212618,0.00029506,7]
[424979747,1781367075000,-289.74261191,0.00029505,7]
[424979756,1781367075000,-451.82757982,0.00029506,7]
[424979761,1781367075000,-590.39817291,0.00029506,7]
[424979771,1781367075000,-481.21011415,0.0002951,7]
[424979767,1781367075000,-482.37101937,0.0002951,7]
[424979766,1781367075000,-530.17595284,0.0002951,7]
[424979764,1781367075000,-505.09960695,0.0002951,7]
[424979763,1781367075000,-461.84746966,0.00029506,7]
[424979765,1781367075000,-164.73182411,0.0002951,7]
[424979762,1781367075000,-426.55442065,0.00029506,7]
[424979768,1781367075000,-494.869893,0.0002951,7]
[424979770,1781367075000,-518.95381737,0.0002951,7]
[424979769,1781367075000,-645.47713215,0.0002951,7]
[424979776,1781367075000,-506.65163065,0.00029516,7]
[424979755,1781367075000,-508.93938408,0.00029506,7]
[424979760,1781367075000,-464.51090178,0.00029506,7]
[424979748,1781367075000,-521.19873462,0.00029505,7]
[424979721,1781367075000,-202.34401909,0.00029505,7]
[424979745,1781367075000,-540.93213537,0.00029505,7]
[424979774,1781367075000,-512.32465013,0.00029516,7]
[424979722,1781367075000,-516.1495809,0.00029505,7]
[424979723,1781367075000,-297.94740402,0.00029505,7]
[424979727,1781367075000,-609.55572555,0.00029505,7]
[424979725,1781367075000,-232.72549978,0.00029505,7]
[424979724,1781367075000,-608.57662115,0.00029505,7]
[424979726,1781367075000,-212.07197413,0.00029505,2]
[424979734,1781367075000,-165.84405431,0.00029505,7]
[424979732,1781367075000,-494.05785594,0.00029505,5]
[424979729,1781367075000,-311.53820229,0.00029505,2]
[424979730,1781367075000,-589.57957985,0.00029505,5]
[424979750,1781367075000,-458.84695645,0.00029505,7]
[424979731,1781367075000,-351.97055243,0.00029505,2]
[424979733,1781367075000,-271.68346444,0.00029505,7]
[424979736,1781367075000,-233.80713516,0.00029505,7]
[424979744,1781367075000,-486.53184717,0.00029505,7]
[424979735,1781367075000,-465.91420822,0.00029505,7]
[424979737,1781367075000,-225.64017706,0.00029505,7]
[424979738,1781367075000,-246.55697897,0.00029505,7]
[424979743,1781367075000,-541.34364171,0.00029505,7]
[424979740,1781367075000,-459.06171767,0.00029505,7]
[424979742,1781367075000,-404.09504628,0.00029505,7]
[424979739,1781367075000,-264.68947964,0.00029505,7]
[424979741,1781367075000,-172.42827338,0.00029505,7]
[424979728,1781367075000,-827.58273763,0.00029505,7]
[424979778,1781367075000,-1151.99,0.00029528,2]
[424979751,1781367075000,-232.37431165,0.00029505,7]
[424979775,1781367075000,-461.16748738,0.00029516,7]
[424979804,1781367075000,-200.0,0.00029883,2]
[424979810,1781367075000,-2000.0,0.000299,2]
[424979808,1781367075000,-9122.44673509,0.000299,30]
[424979809,1781367075000,-1002.22,0.000299,6]
[424979807,1781367075000,-33283.9248,0.000299,2]
[424979806,1781367075000,-407.0,0.000299,2]
[424979812,1781367075000,-354.64,0.000299,6]
[424979813,1781367075000,-151.0,0.000299,7]
[424979816,1781367075000,-378.74034054,0.000299,2]
[424979819,1781367075000,-2279.0,0.00029901,2]
[424979815,1781367075000,-378.74034054,0.000299,2]
[424979811,1781367075000,-921.73,0.000299,7]
[424979817,1781367075000,-378.74034054,0.000299,2]
[424979821,1781367075000,-15000.0,0.00029901,2]
[424979820,1781367075000,-2259.0,0.00029901,2]
[424979822,1781367075000,-775.75,0.00029941,2]
[424979826,1781367075000,-600.0,0.0002997,2]
[424979824,1781367075000,-350.0,0.0002996,4]
[424979825,1781367075000,-350.0,0.00029968,7]
[424979827,1781367075000,-3092105.72734365,0.0002998,3]
[424979828,1781367075000,-151.0,0.0002998,7]
[424979829,1781367075000,-230.390535,0.0002998,7]
[424979823,1781367075000,-401.0,0.0002995,2]
[424979773,1781367075000,-471.66936374,0.00029516,7]
[424979818,1781367075000,-378.74034054,0.000299,2]
[424979805,1781367075000,-57208.99237744,0.000299,2]
[424979814,1781367075000,-151.0,0.000299,7]
[424979803,1781367075000,-489.0,0.00029878,2]
[424979772,1781367075000,-509.38654439,0.0002951,7]
[424979801,1781367075000,-150.0,0.00029863,2]
[424979777,1781367075000,-646.63452196,0.00029516,7]
[424979779,1781367075000,-350.0,0.0002954,5]
[424979789,1781367075000,-401.0,0.00029749,2]
[424979780,1781367075000,-193.40893776,0.0002955,2]
[424979781,1781367075000,-538.52614552,0.00029622,7]
[424979788,1781367075000,-775.75,0.00029746,2]
[424979784,1781367075000,-15000.0,0.00029669,2]
[424979782,1781367075000,-25079.43204777,0.00029648,2]
[424979786,1781367075000,-350.0,0.00029697,6]
[424979783,1781367075000,-15000.0,0.00029661,2]
[424979787,1781367075000,-4262.96033156,0.000297,2]
[424979785,1781367075000,-15000.0,0.00029679,2]
[424979800,1781367075000,-335.0,0.00029849,2]
[424979802,1781367075000,-6503.0,0.00029877,10]
[424979790,1781367075000,-536.0,0.0002975,2]
[424979793,1781367075000,-368.0,0.00029808,2]
[424979792,1781367075000,-335.0,0.00029799,2]
[424979799,1781367075000,-447.0,0.0002984,2]
[424979798,1781367075000,-1998.9991099,0.00029823,120]
[424979797,1781367075000,-2000.0,0.0002982,2]
[424979795,1781367075000,-2000.0,0.0002982,2]
[424979796,1781367075000,-2000.0,0.0002982,2]
[424979791,1781367075000,-355.0,0.00029788,2]
[424979794,1781367075000,-2000.0,0.0002982,2]
[424979862,1781367076000,-194.04120569,0.0003,2]
[424979870,1781367076000,-743.4,0.0003,2]
[424979869,1781367076000,-2000.0,0.0003,2]
[424979867,1781367076000,-200.0,0.0003,10]
[424979863,1781367076000,-213.73642824,0.0003,2]
[424979856,1781367076000,-260.83,0.0003,11]
[424979860,1781367076000,-1000.0,0.0003,120]
[424979861,1781367076000,-3052.82,0.0003,120]
[424979859,1781367076000,-361.26,0.0003,2]
[424979873,1781367076000,-200.0,0.00030008,2]
[424979864,1781367076000,-1143.08,0.0003,2]
[424979874,1781367076000,-200.0,0.00030008,2]
[424979883,1781367076000,-350.0,0.00030078,6]
[424979876,1781367076000,-200.0,0.00030008,2]
[424979871,1781367076000,-600.0,0.0003,2]
[424979868,1781367076000,-509.54871096,0.0003,60]
[424979872,1781367076000,-200.0,0.00030008,2]
[424979877,1781367076000,-200.0,0.00030008,2]
[424979879,1781367076000,-150.0,0.00030025,2]
[424979878,1781367076000,-200.0,0.00030008,2]
[424979889,1781367076000,-458.93226057,0.00030079,7]
[424979882,1781367076000,-504.0,0.00030078,13]
[424979881,1781367076000,-400.0,0.0003007,2]
[424979858,1781367076000,-24999.98,0.0003,2]
[424979875,1781367076000,-200.0,0.00030008,2]
[424979866,1781367076000,-200.0,0.0003,2]
[424979832,1781367076000,-300.0,0.0002998,5]
[424979865,1781367076000,-843.38,0.0003,2]
[424979880,1781367076000,-500.0,0.0003007,2]
[424979830,1781367076000,-300.0,0.0002998,5]
[424979833,1781367076000,-300.0,0.0002998,5]
[424979834,1781367076000,-300.0,0.0002998,5]
[424979843,1781367076000,-400.0,0.0003,2]
[424979836,1781367076000,-76817.77171249,0.0002999,2]
[424979835,1781367076000,-5091.7,0.00029981,7]
[424979837,1781367076000,-401.0,0.00029999,2]
[424979838,1781367076000,-50000.0,0.0003,4]
[424979839,1781367076000,-25000.0,0.0003,2]
[424979840,1781367076000,-2500.0,0.0003,2]
[424979842,1781367076000,-400.0,0.0003,7]
[424979841,1781367076000,-2499.98,0.0003,2]
[424979846,1781367076000,-825.4509627,0.0003,3]
[424979844,1781367076000,-201.026523,0.0003,120]
[424979848,1781367076000,-2471.82,0.0003,2]
[424979853,1781367076000,-650.0,0.0003,2]
[424979855,1781367076000,-200.0,0.0003,11]
[424979847,1781367076000,-4608.8571364,0.0003,2]
[424979845,1781367076000,-893.14,0.0003,2]
[424979854,1781367076000,-200.0,0.0003,11]
[424979850,1781367076000,-200.0,0.0003,120]
[424979851,1781367076000,-600.0,0.0003,120]
[424979852,1781367076000,-412.06761516,0.0003,2]
[424979849,1781367076000,-163.0,0.0003,30]
[424979857,1781367076000,-1555.23,0.0003,2]
[424979884,1781367076000,-694.14866524,0.00030079,7]
[424979831,1781367076000,-300.0,0.0002998,5]
[424979885,1781367076000,-426.00328794,0.00030079,7]
[424979917,1781367076000,-424.14394827,0.00030079,2]
[424979921,1781367076000,-467.30730343,0.00030079,2]
[424979919,1781367076000,-811.43549486,0.00030079,7]
[424979920,1781367076000,-1103.44365017,0.00030079,7]
[424979918,1781367076000,-812.7409674,0.00030079,7]
[424979922,1781367076000,-786.10610647,0.00030079,5]
[424979929,1781367076000,-467.61427032,0.00030079,7]
[424979928,1781367076000,-621.21894429,0.00030079,7]
[424979930,1781367076000,-233.49665667,0.00030079,7]
[424979933,1781367076000,-612.08229022,0.00030079,7]
[424979932,1781367076000,-493.11395795,0.00030079,7]
[424979924,1781367076000,-741.08678392,0.00030079,5]
[424979931,1781367076000,-451.28035411,0.00030079,7]
[424979923,1781367076000,-527.95582864,0.00030079,2]
[424979926,1781367076000,-331.68810861,0.00030079,7]
[424979925,1781367076000,-543.36692889,0.00030079,7]
[424979927,1781367076000,-245.06560329,0.00030079,7]
[424979935,1781367076000,-248.85366096,0.00030079,7]
[424979937,1781367076000,-721.79152228,0.00030079,7]
[424979939,1781367076000,-160.06722887,0.00030079,7]
[424979934,1781367076000,-529.37895929,0.00030079,7]
[424979938,1781367076000,-648.70912956,0.00030079,7]
[424979936,1781367076000,-606.14256942,0.00030079,7]
[424979940,1781367076000,-203.02214875,0.00030079,7]
[424979886,1781367076000,-485.91423255,0.00030079,2]
[424979914,1781367076000,-404.68803817,0.00030079,7]
[424979916,1781367076000,-465.45099957,0.00030079,7]
[424979941,1781367076000,-644.93659229,0.00030079,7]
[424979912,1781367076000,-349.84934533,0.00030079,7]
[424979888,1781367076000,-859.50069323,0.00030079,7]
[424979887,1781367076000,-693.93751087,0.00030079,7]
[424979890,1781367076000,-569.50601845,0.00030079,7]
[424979891,1781367076000,-791.50988457,0.00030079,7]
[424979892,1781367076000,-638.72569357,0.00030079,7]
[424979893,1781367076000,-610.63839319,0.00030079,7]
[424979899,1781367076000,-604.06431279,0.00030079,2]
[424979915,1781367076000,-595.89480804,0.00030079,7]
[424979901,1781367076000,-374.26751075,0.00030079,7]
[424979896,1781367076000,-893.15311305,0.00030079,7]
[424979895,1781367076000,-239.02069321,0.00030079,7]
[424979894,1781367076000,-752.82423212,0.00030079,7]
[424979898,1781367076000,-632.35707244,0.00030079,7]
[424979897,1781367076000,-504.69841838,0.00030079,7]
[424979900,1781367076000,-376.94858934,0.00030079,7]
[424979909,1781367076000,-678.09099062,0.00030079,7]
[424979908,1781367076000,-667.95120932,0.00030079,7]
[424979907,1781367076000,-454.03941859,0.00030079,7]
[424979911,1781367076000,-501.71355974,0.00030079,7]
[424979913,1781367076000,-644.60212476,0.00030079,7]
[424979906,1781367076000,-173.73494006,0.00030079,7]
[424979904,1781367076000,-221.84390347,0.00030079,7]
[424979902,1781367076000,-225.80186222,0.00030079,7]
[424979905,1781367076000,-670.22024884,0.00030079,7]
[424979903,1781367076000,-165.31350154,0.00030079,7]
[424979910,1781367076000,-998.92043096,0.00030079,7]
[424979981,1781367077000,-683.0995335,0.0003009,7]
[424979979,1781367077000,-229.25248672,0.0003009,7]
[424979971,1781367077000,-377.13954471,0.00030084,7]
[424979970,1781367077000,-212.11512792,0.00030084,7]
[424979968,1781367077000,-329.46364822,0.00030084,7]
[424979972,1781367077000,-243.90191857,0.00030084,7]
[424979977,1781367077000,-641.61348553,0.00030084,7]
[424979975,1781367077000,-860.6361762,0.00030084,7]
[424979976,1781367077000,-691.93842316,0.00030084,7]
[424979978,1781367077000,-679.18205919,0.00030084,7]
[424979982,1781367077000,-614.88998317,0.0003009,7]
[424979999,1781367077000,-700.0,0.00030125,2]
[424979986,1781367077000,-862.17936261,0.0003009,7]
[424979988,1781367077000,-300.0,0.000301,10]
[424979984,1781367077000,-419.23705881,0.0003009,7]
[424979985,1781367077000,-396.4766748,0.0003009,7]
[424979980,1781367077000,-628.89248499,0.0003009,7]
[424979987,1781367077000,-200.0,0.000301,2]
[424979989,1781367077000,-200.0,0.000301,2]
[424979991,1781367077000,-150.0,0.00030124,2]
[424979992,1781367077000,-17247.08962655,0.00030125,2]
[424979996,1781367077000,-700.0,0.00030125,2]
[424979998,1781367077000,-700.0,0.00030125,2]
[424979974,1781367077000,-659.826524,0.00030084,7]
[424979983,1781367077000,-675.53550753,0.0003009,7]
[424979973,1781367077000,-723.55652906,0.00030084,7]
[424979949,1781367077000,-391.68714667,0.00030079,7]
[424979964,1781367077000,-639.83163098,0.0003008,7]
[424979945,1781367077000,-200.85507384,0.00030079,7]
[424979944,1781367077000,-425.94566813,0.00030079,7]
[424979942,1781367077000,-721.24284716,0.00030079,7]
[424979943,1781367077000,-579.48522381,0.00030079,7]
[424979950,1781367077000,-232.40750546,0.00030079,7]
[424979952,1781367077000,-150.85547736,0.00030079,7]
[424979951,1781367077000,-688.27043468,0.00030079,7]
[424979953,1781367077000,-464.74862329,0.00030079,7]
[424979954,1781367077000,-721.57426958,0.0003008,7]
[424979955,1781367077000,-631.8152247,0.0003008,7]
[424979956,1781367077000,-621.18705331,0.0003008,7]
[424979969,1781367077000,-706.90127046,0.00030084,7]
[424979946,1781367077000,-688.1994412,0.00030079,7]
[424979948,1781367077000,-330.82342883,0.00030079,7]
[424979957,1781367077000,-678.84195107,0.0003008,7]
[424979959,1781367077000,-602.4367731,0.0003008,7]
[424979960,1781367077000,-747.88283491,0.0003008,7]
[424979963,1781367077000,-787.19756388,0.0003008,7]
[424979958,1781367077000,-678.58584544,0.0003008,7]
[424979967,1781367077000,-673.4661426,0.00030084,7]
[424979965,1781367077000,-615.79662621,0.0003008,7]
[424979962,1781367077000,-619.34786904,0.0003008,7]
[424979966,1781367077000,-443.3,0.00030082,120]
[424979961,1781367077000,-687.48371373,0.0003008,7]
[424979947,1781367077000,-694.93164616,0.00030079,7]
[424979995,1781367077000,-200.0,0.00030125,2]
[424979994,1781367077000,-22500.0,0.00030125,2]
[424979990,1781367077000,-150.0,0.00030124,2]
[424980026,1781367077000,-700.0,0.00030125,2]
[424980024,1781367077000,-700.0,0.00030125,2]
[424980025,1781367077000,-700.0,0.00030125,2]
[424980030,1781367077000,-700.0,0.00030125,2]
[424980031,1781367077000,-700.0,0.00030125,2]
[424980032,1781367077000,-700.0,0.00030125,2]
[424980042,1781367077000,-700.0,0.00030125,2]
[424980043,1781367077000,-700.0,0.00030125,2]
[424980033,1781367077000,-700.0,0.00030125,2]
[424980035,1781367077000,-700.0,0.00030125,2]
[424980034,1781367077000,-700.0,0.00030125,2]